fUSD/lending_fUSD_20241123
["ID","MTS","AMOUNT","RATE_DAILY","PERIOD"]
[343161405,1732389086851,-227.10156115,0.00055259,120]
[343161406,1732389086863,-150.0,0.00055264,14]
[343161407,1732389086873,-150.0,0.00055269,14]
[343161408,1732389086883,-227.10156115,0.00055269,120]
[343161409,1732389086893,-365.84272452,0.00055274,120]
[343161410,1732389086903,-162.06196599,0.00055274,120]
[343161411,1732389086912,-151.0,0.00055274,120]
[343161412,1732389086922,-432.096887,0.00055274,30]
[343161413,1732389086932,-432.096887,0.00055274,30]
[343161414,1732389086942,-241.004659,0.00055274,120]
[343161415,1732389086951,-241.004659,0.00055274,120]
[343161416,1732389086960,-151.0,0.00055274,120]
[343161417,1732389086970,-151.0,0.00055274,120]
[343161418,1732389086982,-151.0,0.00055274,120]
[343161419,1732389086991,-182.694449,0.00055274,120]
[343161420,1732389087001,-189.392812,0.00055274,120]
[343161421,1732389087011,-151.0,0.00055274,120]
[343161422,1732389087021,-182.694449,0.00055274,120]
[343161423,1732389087030,-189.392812,0.00055274,120]
[343161424,1732389087039,-151.0,0.00055274,120]
[343161425,1732389087049,-287.967852,0.00055274,120]
[343161426,1732389087059,-287.967852,0.00055274,120]
[343161427,1732389087069,-151.0,0.00055274,120]
[343161428,1732389087078,-598.100239,0.00055274,120]
[343161429,1732389087087,-598.100239,0.00055274,120]
[343161430,1732389087096,-151.0,0.00055274,120]
[343161431,1732389087105,-151.0,0.00055274,120]
[343161432,1732389087115,-297.286501,0.00055274,120]
[343161433,1732389087124,-297.286501,0.00055274,120]
[343161434,1732389087134,-1210.431448,0.00055274,120]
[343161435,1732389087143,-1210.431448,0.00055274,120]
[343161436,1732389087155,-223.02821175,0.00055276,27]
[343161437,1732389087164,-227.10156115,0.00055279,120]
[343161438,1732389087174,-150.0,0.00055285,14]
[343161439,1732389087184,-227.10156115,0.00055289,120]
[343161440,1732389087194,-150.0,0.00055296,14]
[343161441,1732389087204,-227.10156115,0.00055298,120]
[343161442,1732389087214,-150.0,0.00055301,14]
[343161443,1732389087226,-150.0,0.00055303,14]
[343161444,1732389087237,-829.95598049,0.00055305,30]
[343161445,1732389087247,-321.09227668,0.00055308,2]
[343161446,1732389087257,-227.10156115,0.00055308,120]
[343161447,1732389087268,-150.0,0.00055313,14]
[343161448,1732389087278,-227.10156115,0.00055318,120]
[343161449,1732389087287,-409.59439504,0.00055321,15]
[343161450,1732389087297,-150.0,0.00055326,14]
[343161451,1732389087307,-227.10156115,0.00055327,120]
[343161452,1732389087316,-227.10156115,0.00055337,120]
[343161453,1732389087325,-2974.49108079,0.00055341,2]
[343161454,1732389087335,-150.0,0.00055342,14]
[343161455,1732389087345,-867.13,0.00055342,120]
[343161456,1732389087354,-150.0,0.00055343,14]
[343161457,1732389087363,-150.0,0.00055344,14]
[343161458,1732389087373,-227.10156115,0.00055347,120]
[343161459,1732389087382,-2657.55209029,0.00055347,15]
[343161460,1732389087392,-6291.13588044,0.0005535,15]
[343161461,1732389087401,-2805.29102,0.0005535,74]
[343161462,1732389087411,-150.0,0.00055351,14]
[343161463,1732389087421,-150.0,0.00055351,14]
[343161464,1732389087430,-150.0,0.00055355,14]
[343161465,1732389087439,-227.10156115,0.00055356,120]
[343161466,1732389087449,-150.0,0.0005536,14]
[343161467,1732389087459,-3865.06640968,0.00055366,120]
[343161468,1732389087468,-227.10156115,0.00055366,120]
[343161469,1732389087478,-150.0,0.00055367,14]
[343161470,1732389087487,-400.34879134,0.00055371,120]
[343161471,1732389087497,-227.10156115,0.00055376,120]
[343161472,1732389087506,-227.10156115,0.00055385,120]
[343161473,1732389087515,-150.0,0.00055386,14]
[343161474,1732389087524,-150.0,0.00055386,14]
[343161475,1732389087534,-150.0,0.00055395,14]
[343161476,1732389087543,-227.10156115,0.00055395,120]
[343161477,1732389087553,-1000.0,0.000554,20]
[343161478,1732389087562,-227.10156115,0.00055405,120]
[343161479,1732389087571,-227.10156115,0.00055414,120]
[343161480,1732389087581,-150.0,0.00055415,14]
[343161481,1732389087591,-150.0,0.00055416,14]
[343161482,1732389087600,-227.10156115,0.00055424,120]
[343161483,1732389087610,-1500.0,0.00055427,30]
[343161484,1732389087619,-150.0,0.00055433,14]
[343161485,1732389087628,-227.10156115,0.00055434,120]
[343161486,1732389087637,-150.0,0.00055437,14]
[343161487,1732389087646,-150.0,0.00055437,14]
[343161488,1732389087659,-227.10156115,0.00055443,120]
[343161489,1732389087668,-227.10156115,0.00055453,120]
[343161490,1732389087677,-150.0,0.00055456,14]
[343161491,1732389087687,-227.10156115,0.00055463,120]
[343161492,1732389087696,-150.0,0.00055466,14]
[343161493,1732389087705,-150.0,0.0005547,14]
[343161494,1732389087715,-227.10156115,0.00055473,120]
[343161495,1732389087725,-150.0,0.00055475,14]
[343161496,1732389087735,-1634.99,0.00055478,120]
[343161497,1732389087745,-1634.99,0.00055478,120]
[343161498,1732389087754,-1634.99,0.00055478,120]
[343161499,1732389087763,-1634.99,0.00055478,120]
[343161500,1732389087773,-1634.99,0.00055478,120]
[343161501,1732389087783,-1634.99,0.00055478,120]
[343161502,1732389087792,-1634.99,0.00055478,120]
[343161503,1732389087802,-1635.05,0.00055478,120]
[343161504,1732389087811,-537.82,0.00055478,120]
[343161505,1732389087820,-537.82,0.00055478,120]
[343161506,1732389087829,-537.82,0.00055478,120]
[343161507,1732389087839,-537.82,0.00055478,120]
[343161508,1732389087849,-537.82,0.00055478,120]
[343161509,1732389087858,-537.82,0.00055478,120]
[343161510,1732389087867,-537.82,0.00055478,120]
[343161511,1732389087877,-538.0,0.00055478,120]
[343161512,1732389087886,-500.0,0.00055478,120]
[343161513,1732389087895,-500.0,0.00055478,120]
[343161514,1732389087906,-500.0,0.00055478,120]
[343161515,1732389087915,-500.0,0.00055478,120]
[343161516,1732389087924,-500.0,0.00055478,120]
[343161517,1732389087933,-500.0,0.00055478,120]
[343161518,1732389087942,-534.22,0.00055478,120]
[343161519,1732389087952,-1207.56,0.00055478,120]
[343161520,1732389087963,-1207.56,0.00055478,120]
[343161521,1732389087972,-1207.56,0.00055478,120]
[343161522,1732389087982,-1207.56,0.00055478,120]
[343161523,1732389087991,-1207.56,0.00055478,120]
[343161524,1732389088004,-1207.56,0.00055478,120]
[343161525,1732389088014,-1207.56,0.00055478,120]
[343161526,1732389088023,-1207.75,0.00055478,120]
[343161527,1732389088032,-1401.78,0.00055478,120]
[343161528,1732389088042,-1401.78,0.00055478,120]
[343161529,1732389088052,-1401.78,0.00055478,120]
[343161530,1732389088061,-1401.78,0.00055478,120]
[343161531,1732389088072,-1401.78,0.00055478,120]
[343161532,1732389088082,-1401.78,0.00055478,120]
[343161533,1732389088092,-1401.78,0.00055478,120]
[343161534,1732389088102,-1401.97,0.00055478,120]
[343161535,1732389088112,-516.53,0.00055478,120]
[343161536,1732389088123,-516.53,0.00055478,120]
[343161537,1732389088132,-516.53,0.00055478,120]
[343161538,1732389088143,-516.53,0.00055478,120]
[343161539,1732389088153,-516.53,0.00055478,120]
[343161540,1732389088163,-516.53,0.00055478,120]
[343161541,1732389088173,-516.53,0.00055478,120]
[343161542,1732389088183,-516.65,0.00055478,120]
[343161543,1732389088193,-255.46,0.00055478,120]
[343161544,1732389088203,-840.91,0.00055478,120]
[343161545,1732389088214,-840.91,0.00055478,120]
[343161546,1732389088223,-840.91,0.00055478,120]
[343161547,1732389088233,-840.91,0.00055478,120]
[343161548,1732389088243,-840.91,0.00055478,120]
[343161549,1732389088252,-840.91,0.00055478,120]
[343161550,1732389088262,-840.91,0.00055478,120]
[343161551,1732389088271,-840.99,0.00055478,120]
[343161552,1732389088281,-289.307561,0.00055479,120]
[343161553,1732389088291,-289.307565,0.00055479,120]
[343161554,1732389088300,-417.95,0.00055479,7]
[343161555,1732389088310,-417.95,0.00055479,7]
[343161556,1732389088320,-751.826053,0.00055479,120]
[343161557,1732389088329,-751.826052,0.00055479,120]
[343161558,1732389088339,-151.0,0.00055479,120]
[343161559,1732389088349,-151.0,0.00055479,7]
[343161560,1732389088358,-1131.829652,0.00055479,120]
[343161561,1732389088367,-1131.829643,0.00055479,120]
[343161562,1732389088377,-206.583143,0.00055479,120]
[343161563,1732389088386,-206.583137,0.00055479,120]
[343161564,1732389088396,-227.10156115,0.00055482,120]
[343161565,1732389088408,-227.10156115,0.00055492,120]
[343161566,1732389088417,-150.0,0.00055494,14]
[343161567,1732389088428,-150.0,0.00055495,14]
[343161568,1732389088437,-1393.51,0.00055499,120]
[343161569,1732389088447,-635.57,0.00055499,120]
[343161570,1732389088456,-84150.54,0.000555,30]
[343161571,1732389088466,-151.0,0.000555,120]
[343161572,1732389088476,-151.0,0.000555,120]
[343161573,1732389088486,-151.0,0.000555,120]
[343161574,1732389088497,-242.38779,0.000555,120]
[343161575,1732389088507,-151.0,0.000555,120]
[343161576,1732389088516,-151.0,0.000555,120]
[343161577,1732389088525,-813.605447,0.000555,120]
[343161578,1732389088535,-332.281826,0.000555,120]
[343161579,1732389088544,-813.605447,0.000555,120]
[343161580,1732389088553,-332.281826,0.000555,120]
[343161581,1732389088563,-1000.0,0.000555,20]
[343161582,1732389088572,-15772.0,0.000555,60]
[343161583,1732389088582,-227.10156115,0.00055502,120]
[343161584,1732389088592,-321.09227668,0.00055502,2]
[343161585,1732389088602,-150.0,0.00055507,30]
[343161586,1732389088737,-227.10156115,0.00055511,120]
[343161587,1732389088748,-150.0,0.00055517,14]
[343161588,1732389088757,-227.10156115,0.00055521,120]
[343161589,1732389088768,-227.10156115,0.00055531,120]
[343161590,1732389088777,-227.10156115,0.0005554,120]
[343161591,1732389088787,-366.16,0.00055545,60]
[343161592,1732389088797,-227.10156115,0.0005555,120]
[343161593,1732389088807,-150.0,0.00055559,14]
[343161594,1732389088816,-227.10156115,0.0005556,120]
[343161595,1732389088826,-151.0,0.0005556,120]
[343161596,1732389088835,-151.0,0.0005556,120]
[343161597,1732389088845,-151.0,0.0005556,120]
[343161598,1732389088855,-151.0,0.0005556,120]
[343161599,1732389088864,-151.0,0.0005556,120]
[343161600,1732389088874,-151.0,0.0005556,120]
[343161601,1732389088884,-195.490455,0.0005556,30]
[343161602,1732389088894,-150.0,0.00055563,60]
[343161603,1732389088905,-362.86,0.00055563,60]
[343161604,1732389088915,-150.0,0.00055563,60]
[343161605,1732389088925,-150.0,0.00055563,60]
[343161606,1732389088935,-433.75,0.00055563,60]
[343161607,1732389088945,-150.0,0.00055563,60]
[343161608,1732389088954,-362.86,0.00055563,60]
[343161609,1732389088964,-327.49,0.00055563,60]
[343161610,1732389088974,-433.75,0.00055563,60]
[343161611,1732389088987,-150.0,0.00055563,60]
[343161612,1732389088997,-362.86,0.00055563,60]
[343161613,1732389089007,-150.0,0.00055563,60]
[343161614,1732389089017,-362.86,0.00055563,60]
[343161615,1732389089029,-150.0,0.00055563,60]
[343161616,1732389089039,-150.0,0.00055563,60]
[343161617,1732389089049,-150.0,0.00055563,60]
[343161618,1732389089059,-433.75,0.00055563,60]
[343161619,1732389089070,-150.0,0.00055563,60]
[343161620,1732389089079,-150.0,0.00055563,60]
[343161621,1732389089089,-362.86,0.00055563,60]
[343161622,1732389089099,-150.0,0.00055563,60]
[343161623,1732389089109,-433.75,0.00055563,60]
[343161624,1732389089119,-433.75,0.00055563,60]
[343161625,1732389089129,-150.0,0.00055563,60]
[343161626,1732389089139,-150.0,0.00055563,60]
[343161627,1732389089148,-362.86,0.00055563,60]
[343161628,1732389089160,-150.0,0.00055563,60]
[343161629,1732389089169,-150.0,0.00055563,60]
[343161630,1732389089179,-150.0,0.00055563,60]
[343161631,1732389089189,-433.75,0.00055563,60]
[343161632,1732389089199,-362.86,0.00055563,60]
[343161633,1732389089209,-150.0,0.00055563,60]
[343161634,1732389089219,-362.86,0.00055563,60]
[343161635,1732389089229,-150.0,0.00055563,60]
[343161636,1732389089239,-433.75,0.00055563,60]
[343161637,1732389089249,-150.0,0.00055563,60]
[343161638,1732389089258,-362.86,0.00055563,60]
[343161639,1732389089268,-150.0,0.00055563,60]
[343161640,1732389089278,-433.75,0.00055563,60]
[343161641,1732389089287,-150.0,0.00055563,60]
[343161642,1732389089297,-197.69,0.00055563,60]
[343161643,1732389089307,-433.75,0.00055563,60]
[343161644,1732389089317,-150.0,0.00055563,60]
[343161645,1732389089327,-433.75,0.00055563,60]
[343161646,1732389089337,-433.75,0.00055563,60]
[343161647,1732389089347,-433.75,0.00055563,60]
[343161648,1732389089356,-866.65,0.00055563,60]
[343161649,1732389089366,-209.642797,0.00055563,120]
[343161650,1732389089376,-240.625105,0.00055563,120]
[343161651,1732389089386,-240.625105,0.00055563,120]
[343161652,1732389089396,-151.0,0.00055563,120]
[343161653,1732389089407,-151.0,0.00055563,120]
[343161654,1732389089418,-151.0,0.00055563,120]
[343161655,1732389089428,-151.0,0.00055563,120]
[343161656,1732389089438,-166.33,0.00055564,2]
[343161657,1732389089448,-161.97907418,0.00055566,33]
[343161658,1732389089458,-227.10156115,0.00055569,120]
[343161659,1732389089468,-227.10156115,0.00055579,120]
[343161660,1732389089478,-227.10156115,0.00055589,120]
[343161661,1732389089488,-150.0,0.00055595,14]
[343161662,1732389089499,-227.10156115,0.00055598,120]
[343161663,1732389089509,-1000.0,0.000556,20]
[343161664,1732389089518,-150.0,0.00055603,14]
[343161665,1732389089528,-150.0,0.00055606,30]
[343161666,1732389089538,-150.0,0.00055606,30]
[343161667,1732389089547,-227.10156115,0.00055608,120]
[343161668,1732389089557,-150.0,0.00055617,14]
[343161669,1732389089567,-227.10156115,0.00055618,120]
[343161670,1732389089576,-150.0,0.00055623,14]
[343161671,1732389089586,-227.10156115,0.00055628,120]
[343161672,1732389089596,-150.0,0.00055628,14]
[343161673,1732389089606,-150.0,0.00055632,14]
[343161674,1732389089615,-150.0,0.00055633,14]
[343161675,1732389089625,-227.10156115,0.00055637,120]
[343161676,1732389089635,-227.10156115,0.00055647,120]
[343161677,1732389089645,-150.0,0.00055654,14]
[343161678,1732389089656,-1098.87,0.00055655,2]
[343161679,1732389089665,-227.10156115,0.00055657,120]
[343161680,1732389089675,-1068.146319,0.0005566,27]
[343161681,1732389089684,-150.0,0.00055662,14]
[343161682,1732389089694,-227.10156115,0.00055666,120]
[343161683,1732389089704,-500.0,0.00055669,120]
[343161684,1732389089714,-1572.78,0.00055669,120]
[343161685,1732389089723,-605.11,0.00055669,120]
[343161686,1732389089732,-938.06,0.00055669,120]
[343161687,1732389089742,-500.0,0.00055669,120]
[343161688,1732389089751,-504.66,0.00055669,120]
[343161689,1732389089761,-500.0,0.00055669,120]
[343161690,1732389089770,-500.0,0.00055669,21]
[343161691,1732389089780,-890.63,0.00055669,120]
[343161692,1732389089789,-153.705631,0.00055669,120]
[343161693,1732389089799,-503.12,0.00055669,120]
[343161694,1732389089809,-500.0,0.00055669,120]
[343161695,1732389089819,-500.0,0.00055669,120]
[343161696,1732389089829,-500.0,0.00055669,120]
[343161697,1732389089840,-500.0,0.00055669,120]
[343161698,1732389089849,-223.51,0.00055669,120]
[343161699,1732389089860,-381.17154327,0.00055669,120]
[343161700,1732389089870,-781.19,0.00055669,120]
[343161701,1732389089880,-1494.48,0.00055669,120]
[343161702,1732389089889,-500.0,0.00055669,120]
[343161703,1732389089898,-687.21,0.00055669,120]
[343161704,1732389089915,-500.0,0.00055669,120]
[343161705,1732389089924,-500.0,0.00055669,120]
[343161706,1732389089934,-500.0,0.00055669,120]
[343161707,1732389089944,-151.0,0.0005567,120]
[343161708,1732389089953,-151.0,0.0005567,120]
[343161709,1732389089963,-229.043883,0.0005567,120]
[343161710,1732389089973,-229.043883,0.0005567,120]
[343161711,1732389089983,-202.70913,0.0005567,120]
[343161712,1732389089994,-202.70913,0.0005567,120]
[343161713,1732389090008,-327.981952,0.0005567,120]
[343161714,1732389090018,-327.981952,0.0005567,120]
[343161715,1732389090029,-5317.7164,0.0005567,2]
[343161716,1732389090039,-658.6561,0.0005567,60]
[343161717,1732389090049,-1000.0,0.0005567,2]
[343161718,1732389090059,-30914.171,0.0005567,2]
[343161719,1732389090068,-227.10156115,0.00055676,120]
[343161720,1732389090079,-1000.0,0.0005568,27]
[343161721,1732389090088,-150.0,0.00055685,30]
[343161722,1732389090098,-227.10156115,0.00055686,120]
[343161723,1732389090107,-150.0,0.00055686,14]
[343161724,1732389090117,-227.10156115,0.00055695,120]
[343161725,1732389090127,-321.09227668,0.00055696,2]
[343161726,1732389090137,-500.0,0.00055698,120]
[343161727,1732389090147,-800.0,0.00055699,120]
[343161728,1732389090158,-4822.0,0.000557,2]
[343161729,1732389090168,-4822.0,0.000557,2]
[343161730,1732389090178,-4822.0,0.000557,2]
[343161731,1732389090187,-4822.0,0.000557,2]
[343161732,1732389090197,-486.0,0.000557,3]
[343161733,1732389090207,-287.967852,0.000557,120]
[343161734,1732389090217,-287.967856,0.000557,120]
[343161735,1732389090227,-151.0,0.000557,120]
[343161736,1732389090238,-598.100239,0.000557,120]
[343161737,1732389090249,-598.100233,0.000557,120]
[343161738,1732389090259,-1000.0,0.000557,20]
[343161739,1732389090269,-151.0,0.000557,120]
[343161740,1732389090278,-297.286501,0.000557,120]
[343161741,1732389090288,-297.286494,0.000557,120]
[343161742,1732389090298,-1210.431448,0.000557,120]
[343161743,1732389090308,-1210.431456,0.000557,120]
[343161744,1732389090318,-1000.0,0.000557,27]
[343161745,1732389090328,-150.0,0.00055702,14]
[343161746,1732389090338,-150.0,0.00055703,14]
[343161747,1732389090348,-227.10156115,0.00055705,120]
[343161748,1732389090358,-150.0,0.00055713,30]
[343161749,1732389090368,-150.0,0.00055713,14]
[343161750,1732389090378,-227.10156115,0.00055715,120]
[343161751,1732389090387,-150.0,0.00055719,14]
[343161752,1732389090397,-1000.0,0.0005572,27]
[343161753,1732389090409,-227.10156115,0.00055724,120]
[343161754,1732389090418,-151.0,0.00055725,120]
[343161755,1732389090428,-151.0,0.00055725,120]
[343161756,1732389090438,-151.0,0.00055725,120]
[343161757,1732389090448,-218.633121,0.00055725,110]
[343161758,1732389090458,-218.633121,0.00055725,110]
[343161759,1732389090468,-151.0,0.00055725,120]
[343161760,1732389090478,-151.0,0.00055725,120]
[343161761,1732389090488,-182.694449,0.00055725,120]
[343161762,1732389090498,-189.392812,0.00055725,120]
[343161763,1732389090508,-151.0,0.00055725,120]
[343161764,1732389090518,-182.694449,0.00055725,120]
[343161765,1732389090527,-189.392812,0.00055725,120]
[343161766,1732389090536,-151.0,0.00055725,120]
[343161767,1732389090546,-150.0,0.00055732,14]
[343161768,1732389090556,-150.0,0.00055734,14]
[343161769,1732389090566,-227.10156115,0.00055734,120]
[343161770,1732389090575,-1393.51,0.00055737,120]
[343161771,1732389090585,-635.57,0.00055737,120]
[343161772,1732389090595,-1500.0,0.0005574,30]
[343161773,1732389090604,-1000.0,0.0005574,27]
[343161774,1732389090614,-150.0,0.00055743,14]
[343161775,1732389090624,-227.10156115,0.00055744,120]
[343161776,1732389090634,-150.0,0.00055745,14]
[343161777,1732389090644,-227.10156115,0.00055753,120]
[343161778,1732389090654,-150.0,0.00055757,14]
[343161779,1732389090663,-1000.0,0.0005576,27]
[343161780,1732389090672,-150.0,0.00055765,14]
[343161781,1732389090682,-500.0,0.00055768,120]
[343161782,1732389090806,-448.70740805,0.00055768,120]
[343161783,1732389090817,-500.0,0.00055768,120]
[343161784,1732389090827,-500.0,0.00055768,120]
[343161785,1732389090836,-500.0,0.00055768,120]
[343161786,1732389090845,-500.0,0.00055768,120]
[343161787,1732389090855,-389.16815389,0.00055768,120]
[343161788,1732389090866,-365.04,0.00055768,120]
[343161789,1732389090876,-500.0,0.00055768,120]
[343161790,1732389090886,-500.0,0.00055768,120]
[343161791,1732389090896,-439.07044018,0.00055768,120]
[343161792,1732389090907,-500.0,0.00055768,120]
[343161793,1732389090917,-500.0,0.00055768,120]
[343161794,1732389090927,-187.42,0.00055768,120]
[343161795,1732389090937,-500.0,0.00055768,120]
[343161796,1732389090947,-222.76,0.00055768,120]
[343161797,1732389090957,-500.0,0.00055768,120]
[343161798,1732389090967,-151.0,0.00055768,120]
[343161799,1732389090976,-432.096887,0.00055768,30]
[343161800,1732389090987,-500.0,0.00055768,120]
[343161801,1732389090997,-500.0,0.00055768,120]
[343161802,1732389091010,-432.096887,0.00055768,30]
[343161803,1732389091020,-241.004659,0.00055768,120]
[343161804,1732389091031,-500.0,0.00055768,120]
[343161805,1732389091042,-241.004659,0.00055768,120]
[343161806,1732389091052,-500.0,0.00055768,120]
[343161807,1732389091062,-541.51175149,0.00055768,120]
[343161808,1732389091076,-656.31,0.00055768,120]
[343161809,1732389091087,-500.0,0.00055768,120]
[343161810,1732389091098,-168.0,0.00055768,120]
[343161811,1732389091109,-500.0,0.00055768,120]
[343161812,1732389091118,-500.0,0.00055768,120]
[343161813,1732389091129,-577.44,0.00055768,120]
[343161814,1732389091139,-500.0,0.00055768,120]
[343161815,1732389091149,-432.28773977,0.00055768,120]
[343161816,1732389091161,-500.0,0.00055768,120]
[343161817,1732389091171,-609.3,0.00055768,120]
[343161818,1732389091182,-500.0,0.00055768,120]
[343161819,1732389091193,-150.0,0.00055768,30]
[343161820,1732389091203,-500.0,0.00055768,120]
[343161821,1732389091214,-1324.03,0.00055768,120]
[343161822,1732389091224,-1200.79,0.00055768,120]
[343161823,1732389091235,-500.0,0.00055768,120]
[343161824,1732389091245,-500.0,0.00055768,120]
[343161825,1732389091255,-500.0,0.00055768,120]
[343161826,1732389091265,-500.0,0.00055768,120]
[343161827,1732389091274,-364.21,0.00055768,120]
[343161828,1732389091283,-500.0,0.00055768,120]
[343161829,1732389091293,-500.0,0.00055768,120]
[343161830,1732389091304,-1803.76,0.00055768,120]
[343161831,1732389091314,-1486.62,0.00055768,120]
[343161832,1732389091325,-500.0,0.00055768,120]
[343161833,1732389091334,-1278.68,0.00055768,120]
[343161834,1732389091345,-500.0,0.00055768,120]
[343161835,1732389091355,-1227.87,0.00055768,120]
[343161836,1732389091365,-361.91,0.00055768,120]
[343161837,1732389091375,-1339.52,0.00055768,120]
[343161838,1732389091386,-500.0,0.00055768,120]
[343161839,1732389091396,-500.0,0.00055768,7]
[343161840,1732389091407,-500.0,0.00055768,54]
[343161841,1732389091417,-154.54,0.00055768,120]
[343161842,1732389091426,-1360.17,0.00055768,120]
[343161843,1732389091436,-500.0,0.00055768,120]
[343161844,1732389091446,-500.0,0.00055768,120]
[343161845,1732389091457,-500.0,0.00055768,120]
[343161846,1732389091467,-500.0,0.00055768,120]
[343161847,1732389091477,-500.0,0.00055768,120]
[343161848,1732389091487,-500.0,0.00055768,120]
[343161849,1732389091497,-500.0,0.00055768,120]
[343161850,1732389091507,-500.0,0.00055768,120]
[343161851,1732389091517,-762.84,0.00055768,120]
[343161852,1732389091527,-1009.83,0.00055768,120]
[343161853,1732389091537,-500.0,0.00055768,120]
[343161854,1732389091547,-500.0,0.00055768,120]
[343161855,1732389091557,-528.0441229,0.00055768,120]
[343161856,1732389091567,-500.0,0.00055768,120]
[343161857,1732389091577,-500.0,0.00055768,120]
[343161858,1732389091586,-433.86,0.00055768,120]
[343161859,1732389091596,-500.0,0.00055768,120]
[343161860,1732389091606,-450.68,0.00055768,120]
[343161861,1732389091615,-500.0,0.00055768,120]
[343161862,1732389091626,-836.17,0.00055768,120]
[343161863,1732389091637,-500.0,0.00055768,120]
[343161864,1732389091646,-500.0,0.00055768,120]
[343161865,1732389091657,-1293.77,0.00055768,120]
[343161866,1732389091667,-500.0,0.00055768,120]
[343161867,1732389091676,-500.0,0.00055768,120]
[343161868,1732389091685,-500.0,0.00055768,120]
[343161869,1732389091695,-221.06,0.00055768,120]
[343161870,1732389091705,-500.0,0.00055768,120]
[343161871,1732389091714,-1393.51,0.00055768,120]
[343161872,1732389091724,-1393.51,0.00055768,120]
[343161873,1732389091736,-1393.51,0.00055768,120]
[343161874,1732389091756,-1393.51,0.00055768,120]
[343161875,1732389091771,-1393.51,0.00055768,120]
[343161876,1732389091789,-1393.51,0.00055768,120]
[343161877,1732389091807,-500.0,0.00055768,120]
[343161878,1732389091822,-1393.72,0.00055768,120]
[343161879,1732389091840,-500.0,0.00055768,120]
[343161880,1732389091858,-500.0,0.00055768,120]
[343161881,1732389091877,-500.0,0.00055768,30]
[343161882,1732389091895,-635.57,0.00055768,120]
[343161883,1732389091912,-635.57,0.00055768,120]
[343161884,1732389091930,-635.57,0.00055768,120]
[343161885,1732389091943,-635.57,0.00055768,120]
[343161886,1732389091962,-635.57,0.00055768,120]
[343161887,1732389091974,-635.57,0.00055768,120]
[343161888,1732389091994,-635.57,0.00055768,120]
[343161889,1732389092007,-500.0,0.00055768,120]
[343161890,1732389092024,-500.0,0.00055768,120]
[343161891,1732389092040,-500.0,0.00055768,120]
[343161892,1732389092055,-500.0,0.00055768,120]
[343161893,1732389092070,-1832.61077781,0.00055769,120]
[343161894,1732389092086,-500.0,0.00055769,120]
[343161895,1732389092102,-500.0,0.00055769,120]
[343161896,1732389092117,-500.0,0.00055769,120]
[343161897,1732389092134,-562.3984527,0.00055769,120]
[343161898,1732389092149,-500.0,0.00055769,120]
[343161899,1732389092164,-444.0379154,0.00055769,120]
[343161900,1732389092179,-500.0,0.00055769,120]
[343161901,1732389092194,-500.0,0.00055769,120]
[343161902,1732389092209,-500.0,0.00055769,120]
[343161903,1732389092224,-500.0,0.00055769,120]
[343161904,1732389092239,-505.04,0.00055769,120]